fUST/lending_fUST_20250715
["ID","MTS","AMOUNT","RATE_DAILY","PERIOD"]
[372131678,1752533446731,-460.0,0.00022465,3]
[372131680,1752533446740,-460.0,0.00022465,3]
[372131682,1752533446750,-460.0,0.00022465,3]
[372131684,1752533446759,-460.0,0.00022465,3]
[372131686,1752533446768,-460.0,0.00022465,3]
[372131688,1752533446778,-460.0,0.00022465,3]
[372131690,1752533446787,-460.0,0.00022465,3]
[372131692,1752533446796,-460.0,0.00022465,3]
[372131694,1752533446806,-3242.26,0.00022465,3]
[372131696,1752533446815,-460.0,0.00022465,3]
[372131698,1752533446824,-460.0,0.00022465,3]
[372131700,1752533446833,-460.0,0.00022465,3]
[372131702,1752533446842,-460.0,0.00022465,3]
[372131704,1752533446852,-460.0,0.00022465,3]
[372131706,1752533446863,-460.0,0.00022465,3]
[372131708,1752533446872,-460.0,0.00022465,3]
[372131710,1752533446882,-605.83,0.00022465,3]
[372131711,1752533446893,-1100.96,0.00022465,3]
[372131713,1752533446902,-461.72,0.00022465,3]
[372131715,1752533446911,-460.0,0.00022465,3]
[372131717,1752533446921,-460.0,0.00022465,3]
[372131719,1752533446931,-757.64,0.00022465,3]
[372131721,1752533446941,-460.0,0.00022465,3]
[372131723,1752533446951,-460.0,0.00022465,3]
[372131725,1752533446961,-460.0,0.00022465,3]
[372131727,1752533446970,-532.15,0.00022465,3]
[372131729,1752533446980,-460.0,0.00022465,3]
[372131731,1752533446989,-2170.58,0.00022465,3]
[372131733,1752533447005,-460.0,0.00022465,3]
[372131735,1752533447016,-460.0,0.00022465,3]
[372131737,1752533447026,-460.0,0.00022465,3]
[372131739,1752533447036,-460.0,0.00022465,3]
[372131740,1752533447047,-460.0,0.00022465,3]
[372131741,1752533447056,-488.41,0.00022465,3]
[372131742,1752533447066,-675.21,0.00022465,3]
[372131743,1752533447076,-460.0,0.00022465,3]
[372131744,1752533447086,-486.09,0.00022465,3]
[372131745,1752533447097,-3258.61,0.00022465,3]
[372131746,1752533447107,-541.33,0.00022465,3]
[372131747,1752533447116,-460.0,0.00022465,3]
[372131748,1752533447126,-460.0,0.00022465,3]
[372131749,1752533447135,-1814.97,0.00022465,3]
[372131750,1752533447144,-460.0,0.00022465,3]
[372131751,1752533447155,-460.0,0.00022465,3]
[372131753,1752533447164,-720.91,0.00022465,3]
[372131755,1752533447174,-5525.87,0.00022465,3]
[372131757,1752533447184,-746.44,0.00022465,3]
[372131759,1752533447194,-460.0,0.00022465,3]
[372131761,1752533447203,-460.0,0.00022465,3]
[372131763,1752533447213,-460.0,0.00022465,3]
[372131765,1752533447222,-460.0,0.00022465,3]
[372131767,1752533447232,-1497.08,0.00022465,3]
[372131769,1752533447241,-1019.17,0.00022465,3]
[372131781,1752533447333,-460.0,0.00022465,3]
[372131783,1752533447354,-460.0,0.00022465,3]
[372131785,1752533447363,-573.07,0.00022465,3]
[372131787,1752533447372,-895.64,0.00022465,3]
[372131789,1752533447382,-460.0,0.00022465,3]
[372131791,1752533447393,-633.01,0.00022465,3]
[372131793,1752533447402,-727.47,0.00022465,3]
[372131795,1752533447412,-460.0,0.00022465,3]
[372131797,1752533447422,-460.0,0.00022465,3]
[372131799,1752533447431,-2619.08,0.00022465,3]
[372131801,1752533447442,-460.0,0.00022465,3]
[372131803,1752533447452,-862.51,0.00022465,3]
[372131805,1752533447462,-460.0,0.00022465,3]
[372131807,1752533447471,-460.0,0.00022465,3]
[372131809,1752533447480,-460.0,0.00022465,3]
[372131811,1752533447491,-460.0,0.00022465,3]
[372131813,1752533447501,-460.0,0.00022465,3]
[372131815,1752533447511,-2300.28,0.00022465,3]
[372131817,1752533447520,-460.0,0.00022465,3]
[372131819,1752533447529,-460.0,0.00022465,3]
[372131821,1752533447539,-460.0,0.00022465,3]
[372131823,1752533447548,-3309.28,0.00022465,3]
[372131825,1752533447557,-460.0,0.00022465,3]
[372131827,1752533447567,-576.02,0.00022465,3]
[372131829,1752533447577,-460.0,0.00022465,3]
[372131831,1752533447586,-460.0,0.00022465,3]
[372131833,1752533447596,-460.0,0.00022465,3]
[372131835,1752533447605,-460.0,0.00022465,3]
[372131837,1752533447615,-508.59,0.00022465,3]
[372131839,1752533447624,-460.0,0.00022465,3]
[372131841,1752533447634,-460.0,0.00022465,3]
[372131843,1752533447643,-460.0,0.00022465,3]
[372131845,1752533447652,-3133.72,0.00022465,3]
[372131847,1752533447661,-975.59,0.00022465,3]
[372131849,1752533447671,-460.0,0.00022465,3]
[372131851,1752533447680,-4974.4,0.00022465,3]
[372131853,1752533447690,-759.28,0.00022465,3]
[372131855,1752533447699,-641.45,0.00022465,3]
[372131857,1752533447708,-460.0,0.00022465,3]
[372131859,1752533447718,-669.36,0.00022465,3]
[372131861,1752533447727,-460.0,0.00022465,3]
[372131863,1752533447737,-504.07,0.00022465,3]
[372131865,1752533447748,-1181.0,0.00022465,3]
[372131867,1752533447757,-460.0,0.00022465,3]
[372131869,1752533447766,-460.0,0.00022465,3]
[372131871,1752533447776,-460.0,0.00022465,3]
[372131873,1752533447787,-465.55,0.00022465,3]
[372131875,1752533447796,-460.0,0.00022465,3]
[372131877,1752533447806,-460.0,0.00022465,3]
[372131879,1752533447816,-460.0,0.00022465,3]
[372131881,1752533447827,-1145.72,0.00022465,3]
[372131883,1752533447836,-460.0,0.00022465,3]
[372131885,1752533447846,-589.14,0.00022465,3]
[372131887,1752533447857,-1158.27,0.00022465,3]
[372131889,1752533447866,-460.0,0.00022465,3]
[372131891,1752533447877,-508.69,0.00022465,3]
[372131893,1752533447887,-460.0,0.00022465,3]
[372131895,1752533447897,-460.0,0.00022465,3]
[372131897,1752533447907,-2126.53,0.00022465,3]
[372131899,1752533447916,-556.81,0.00022465,3]
[372131901,1752533447926,-645.14,0.00022465,3]
[372131903,1752533447935,-1966.85,0.00022465,3]
[372131905,1752533447944,-460.0,0.00022465,3]
[372131907,1752533447953,-460.0,0.00022465,3]
[372131909,1752533447962,-460.0,0.00022465,3]
[372131911,1752533447971,-460.0,0.00022465,3]
[372131913,1752533447979,-460.0,0.00022465,3]
[372131915,1752533447989,-1317.74,0.00022465,3]
[372131917,1752533448000,-460.0,0.00022465,3]
[372131919,1752533448011,-3700.94,0.00022465,3]
[372131921,1752533448020,-218.0,0.00022466,7]
[372131923,1752533448030,-500.0,0.00022473,2]
[372131925,1752533448040,-500.0,0.00022473,2]
[372131927,1752533448048,-502.54304723,0.00022473,2]
[372131929,1752533448058,-500.0,0.00022473,2]
[372131931,1752533448068,-500.0,0.00022473,2]
[372131933,1752533448077,-500.0,0.00022473,2]
[372131935,1752533448087,-500.0,0.00022473,2]
[372131937,1752533448098,-500.0,0.00022473,2]
[372131939,1752533448108,-501.76611946,0.00022473,2]
[372131941,1752533448118,-174.46404101,0.00022473,2]
[372131943,1752533448128,-1000.0,0.00022521,2]
[372131945,1752533448137,-500.0,0.00022521,2]
[372131947,1752533448147,-500.0,0.00022521,2]
[372131949,1752533448157,-500.0,0.00022521,2]
[372131951,1752533448166,-500.0,0.00022521,2]
[372131953,1752533448176,-1000.0,0.00022521,2]
[372131955,1752533448185,-1096.20139154,0.00022521,2]
[372131957,1752533448195,-1000.0,0.00022521,2]
[372131959,1752533448205,-500.0,0.00022521,2]
[372131961,1752533448215,-554.28493635,0.00022521,2]
[372131963,1752533448223,-16623.59042759,0.00022578,2]
[372131965,1752533448233,-1000.0,0.00022616,2]
[372131967,1752533448244,-2000.0,0.00022616,2]
[372131969,1752533448253,-1567.00065283,0.00022624,7]
[372131971,1752533448262,-160.0,0.00022631,2]
[372131973,1752533448272,-611.96605692,0.00022693,2]
[372131975,1752533448282,-420.0,0.00022707,2]
[372131977,1752533448292,-382.0,0.00022708,2]
[372131979,1752533448301,-4459.10186293,0.00022708,2]
[372131981,1752533448311,-151.0,0.00022708,2]
[372131983,1752533448321,-2000.0,0.00022708,2]
[372131985,1752533448330,-151.0,0.00022708,2]
[372131987,1752533448339,-2000.0,0.00022708,2]
[372131989,1752533448349,-151.0,0.00022708,2]
[372131991,1752533448358,-151.0,0.00022708,2]
[372131993,1752533448367,-1000.0,0.00022708,2]
[372131995,1752533448377,-151.0,0.00022708,2]
[372131997,1752533448386,-151.0,0.00022708,2]
[372131999,1752533448396,-151.0,0.00022708,2]
[372132001,1752533448406,-151.0,0.00022708,2]
[372132003,1752533448415,-151.0,0.00022708,2]
[372132005,1752533448424,-151.0,0.00022708,2]
[372132007,1752533448434,-151.0,0.00022708,2]
[372132009,1752533448445,-207.4,0.00022708,2]
[372132011,1752533448454,-151.0,0.00022708,2]
[372132013,1752533448463,-151.0,0.00022708,2]
[372132015,1752533448473,-151.0,0.00022708,2]
[372132017,1752533448482,-151.0,0.00022708,2]
[372132019,1752533448491,-151.0,0.00022708,2]
[372132021,1752533448502,-151.0,0.00022708,2]
[372132023,1752533448512,-151.0,0.00022708,2]
[372132026,1752533448522,-151.0,0.00022708,2]
[372132028,1752533448532,-151.0,0.00022708,2]
[372132030,1752533448541,-151.0,0.00022708,2]
[372132032,1752533448550,-151.0,0.00022708,2]
[372132034,1752533448562,-151.0,0.00022708,2]
[372132036,1752533448571,-151.0,0.00022708,2]
[372132038,1752533448580,-151.0,0.00022708,2]
[372132040,1752533448589,-151.0,0.00022708,2]
[372132042,1752533448598,-151.0,0.00022708,2]
[372132044,1752533448608,-151.0,0.00022708,2]
[372132046,1752533448617,-151.0,0.00022708,2]
[372132048,1752533448627,-151.0,0.00022708,2]
[372132050,1752533448636,-162.97940232,0.00022708,2]
[372132052,1752533448645,-151.0,0.00022708,2]
[372132054,1752533448654,-151.0,0.00022708,2]
[372132056,1752533448664,-151.0,0.00022708,2]
[372132058,1752533448673,-151.0,0.00022708,2]
[372132060,1752533448682,-151.0,0.00022708,2]
[372132062,1752533448692,-151.0,0.00022708,2]
[372132064,1752533448701,-151.0,0.00022708,2]
[372132066,1752533448710,-151.0,0.00022708,2]
[372132068,1752533448719,-151.0,0.00022708,2]
[372132070,1752533448729,-151.0,0.00022708,2]
[372132072,1752533448738,-165.0,0.00022708,2]
[372132074,1752533448747,-151.0,0.00022708,2]
[372132076,1752533448757,-151.0,0.00022708,2]
[372132078,1752533448766,-151.0,0.00022708,2]
[372132080,1752533448776,-151.0,0.00022708,2]
[372132082,1752533448786,-18958.62933,0.00022708,2]
[372132084,1752533448795,-500.64033782,0.00022721,2]
[372132086,1752533448804,-300.0,0.00022721,2]
[372132088,1752533448814,-460.0,0.00022739,3]
[372132090,1752533448823,-460.0,0.00022739,3]
[372132092,1752533448832,-460.0,0.00022739,3]
[372132094,1752533448842,-200.88375893,0.00022739,3]
[372132096,1752533448852,-460.0,0.00022739,3]
[372132098,1752533448861,-460.0,0.00022739,3]
[372132100,1752533448871,-604.15,0.00022739,3]
[372132102,1752533448880,-460.0,0.00022739,3]
[372132104,1752533448889,-460.0,0.00022739,3]
[372132106,1752533448899,-460.0,0.00022739,3]
[372132108,1752533448908,-460.0,0.00022739,3]
[372132110,1752533448918,-460.0,0.00022739,3]
[372132112,1752533448927,-460.0,0.00022739,3]
[372132114,1752533448937,-460.0,0.00022739,3]
[372132116,1752533448946,-460.0,0.00022739,3]
[372132118,1752533448955,-460.0,0.00022739,3]
[372132120,1752533448965,-460.0,0.00022739,3]
[372132122,1752533448974,-559.1881623,0.00022739,3]
[372132124,1752533448984,-751.61,0.00022739,3]
[372132126,1752533448994,-460.0,0.00022739,3]
[372132128,1752533449007,-587.13,0.00022739,3]
[372132130,1752533449016,-460.0,0.00022739,3]
[372132132,1752533449026,-831.11,0.00022739,3]
[372132134,1752533449036,-460.0,0.00022739,3]
[372132136,1752533449047,-832.44,0.00022739,3]
[372132138,1752533449056,-460.0,0.00022739,3]
[372132140,1752533449066,-460.0,0.00022739,3]
[372132142,1752533449076,-460.0,0.00022739,3]
[372132145,1752533449092,-803.81,0.00022739,3]
[372132147,1752533449102,-460.0,0.00022739,3]
[372132149,1752533449111,-460.0,0.00022739,3]
[372132151,1752533449121,-460.0,0.00022739,3]
[372132153,1752533449131,-460.0,0.00022739,3]
[372132155,1752533449140,-460.0,0.00022739,3]
[372132157,1752533449150,-460.0,0.00022739,3]
[372132159,1752533449160,-507.49532769,0.00022739,3]
[372132161,1752533449169,-654.99,0.00022739,3]
[372132163,1752533449179,-460.0,0.00022739,3]
[372132165,1752533449188,-570.2,0.00022739,3]
[372132167,1752533449197,-460.0,0.00022739,3]
[372132169,1752533449207,-460.0,0.00022739,3]
[372132181,1752533449307,-460.0,0.00022739,3]
[372132183,1752533449317,-460.0,0.00022739,3]
[372132185,1752533449327,-261.7,0.00022739,3]
[372132187,1752533449336,-535.70950618,0.00022739,3]
[372132189,1752533449347,-230.94329084,0.00022739,3]
[372132191,1752533449357,-432.45527726,0.00022739,3]
[372132193,1752533449366,-460.0,0.00022739,3]
[372132195,1752533449376,-460.0,0.00022739,3]
[372132197,1752533449385,-3242.26,0.00022739,3]
[372132199,1752533449394,-460.0,0.00022739,3]
[372132201,1752533449404,-460.0,0.00022739,3]
[372132203,1752533449413,-460.0,0.00022739,3]
[372132205,1752533449422,-460.0,0.00022739,3]
[372132207,1752533449432,-460.0,0.00022739,3]
[372132209,1752533449441,-460.0,0.00022739,3]
[372132211,1752533449450,-460.0,0.00022739,3]
[372132213,1752533449459,-605.83,0.00022739,3]
[372132215,1752533449469,-1100.96,0.00022739,3]
[372132217,1752533449478,-461.72,0.00022739,3]
[372132219,1752533449488,-460.0,0.00022739,3]
[372132221,1752533449498,-757.64,0.00022739,3]
[372132223,1752533449507,-460.0,0.00022739,3]
[372132225,1752533449516,-460.0,0.00022739,3]
[372132227,1752533449526,-460.0,0.00022739,3]
[372132229,1752533449535,-2170.58,0.00022739,3]
[372132231,1752533449544,-460.0,0.00022739,3]
[372132233,1752533449553,-460.0,0.00022739,3]
[372132235,1752533449563,-460.0,0.00022739,3]
[372132237,1752533449572,-460.0,0.00022739,3]
[372132239,1752533449582,-460.0,0.00022739,3]
[372132241,1752533449591,-675.21,0.00022739,3]
[372132243,1752533449601,-486.09,0.00022739,3]
[372132245,1752533449610,-3258.61,0.00022739,3]
[372132247,1752533449619,-541.33,0.00022739,3]
[372132249,1752533449628,-460.0,0.00022739,3]
[372132251,1752533449638,-460.0,0.00022739,3]
[372132253,1752533449647,-1814.97,0.00022739,3]
[372132255,1752533449656,-460.0,0.00022739,3]
[372132257,1752533449666,-460.0,0.00022739,3]
[372132259,1752533449675,-720.91,0.00022739,3]
[372132261,1752533449684,-5525.87,0.00022739,3]
[372132263,1752533449694,-746.44,0.00022739,3]
[372132265,1752533449703,-460.0,0.00022739,3]
[372132267,1752533449712,-460.0,0.00022739,3]
[372132269,1752533449722,-460.0,0.00022739,3]
[372132271,1752533449731,-460.0,0.00022739,3]
[372132273,1752533449740,-1497.08,0.00022739,3]
[372132275,1752533449751,-1019.17,0.00022739,3]
[372132277,1752533449761,-460.0,0.00022739,3]
[372132279,1752533449770,-460.0,0.00022739,3]
[372132281,1752533449780,-573.07,0.00022739,3]
[372132283,1752533449789,-895.64,0.00022739,3]
[372132285,1752533449799,-633.01,0.00022739,3]
[372132287,1752533449808,-727.47,0.00022739,3]
[372132289,1752533449818,-460.0,0.00022739,3]
[372132291,1752533449828,-460.0,0.00022739,3]
[372132293,1752533449837,-2619.08,0.00022739,3]
[372132295,1752533449847,-460.0,0.00022739,3]
[372132297,1752533449856,-862.51,0.00022739,3]
[372132299,1752533449866,-460.0,0.00022739,3]
[372132301,1752533449875,-460.0,0.00022739,3]
[372132303,1752533449884,-460.0,0.00022739,3]
[372132305,1752533449894,-2300.28,0.00022739,3]
[372132307,1752533449903,-460.0,0.00022739,3]
[372132309,1752533449913,-460.0,0.00022739,3]
[372132311,1752533449923,-3309.28,0.00022739,3]
[372132313,1752533449932,-460.0,0.00022739,3]
[372132315,1752533449942,-576.02,0.00022739,3]
[372132317,1752533449951,-460.0,0.00022739,3]
[372132319,1752533449960,-460.0,0.00022739,3]
[372132321,1752533449970,-460.0,0.00022739,3]
[372132323,1752533449979,-508.59,0.00022739,3]
[372132325,1752533449988,-556.43091798,0.00022739,3]
[372132327,1752533449998,-460.0,0.00022739,3]
[372132329,1752533450009,-460.0,0.00022739,3]
[372132331,1752533450021,-3133.72,0.00022739,3]
[372132333,1752533450030,-975.59,0.00022739,3]
[372132335,1752533450041,-460.0,0.00022739,3]
[372132337,1752533450050,-4974.4,0.00022739,3]
[372132339,1752533450061,-759.28,0.00022739,3]
[372132341,1752533450070,-641.45,0.00022739,3]
[372132343,1752533450080,-460.0,0.00022739,3]
[372132345,1752533450091,-669.36,0.00022739,3]
[372132347,1752533450101,-460.0,0.00022739,3]
[372132349,1752533450111,-504.07,0.00022739,3]
[372132351,1752533450120,-1181.0,0.00022739,3]
[372132353,1752533450129,-460.0,0.00022739,3]
[372132355,1752533450139,-460.0,0.00022739,3]
[372132357,1752533450148,-460.0,0.00022739,3]
[372132359,1752533450158,-465.55,0.00022739,3]
[372132361,1752533450168,-460.0,0.00022739,3]
[372132363,1752533450177,-460.0,0.00022739,3]
[372132366,1752533450188,-1145.72,0.00022739,3]
[372132368,1752533450197,-460.0,0.00022739,3]
[372132370,1752533450207,-1158.27,0.00022739,3]
[372132372,1752533450216,-460.0,0.00022739,3]
[372132374,1752533450225,-508.69,0.00022739,3]
[372132376,1752533450235,-460.0,0.00022739,3]
[372132378,1752533450244,-460.0,0.00022739,3]
[372132380,1752533450253,-2126.53,0.00022739,3]
[372132382,1752533450263,-556.81,0.00022739,3]
[372132384,1752533450272,-645.14,0.00022739,3]
[372132386,1752533450281,-1966.85,0.00022739,3]
[372132388,1752533450290,-460.0,0.00022739,3]
[372132390,1752533450299,-460.0,0.00022739,3]
[372132392,1752533450308,-460.0,0.00022739,3]
[372132394,1752533450317,-1317.74,0.00022739,3]
[372132396,1752533450327,-460.0,0.00022739,3]
[372132398,1752533450336,-3700.94,0.00022739,3]
[372132400,1752533450345,-500.0,0.00022773,2]
[372132402,1752533450355,-500.0,0.00022773,2]
[372132404,1752533450364,-571.70043832,0.00022773,2]
[372132406,1752533450373,-1567.00065283,0.00022797,7]
[372132408,1752533450383,-152.40841546,0.00022814,2]
[372132410,1752533450392,-355.61963609,0.00022814,2]
[372132412,1752533450401,-1567.00065283,0.00022969,8]
[372132414,1752533450411,-1951.63,0.00023,2]
[372132416,1752533450422,-838.70323114,0.00023,3]
[372132418,1752533450431,-215.47013733,0.00023,3]
[372132420,1752533450440,-525.46609069,0.00023,3]
[372132422,1752533450450,-230.73061749,0.00023,3]
[372132424,1752533450460,-500.0,0.00023012,2]
[372132426,1752533450471,-500.0,0.00023012,2]
[372132428,1752533450480,-561.13118518,0.00023012,2]
[372132430,1752533450490,-500.0,0.00023012,2]
[372132432,1752533450500,-500.0,0.00023012,2]
[372132434,1752533450509,-500.0,0.00023012,2]
[372132436,1752533450518,-500.0,0.00023012,2]
[372132438,1752533450528,-500.0,0.00023012,2]
[372132440,1752533450538,-500.0,0.00023012,2]
[372132442,1752533450547,-500.0,0.00023012,2]
[372132444,1752533450556,-272.17546377,0.00023012,2]
[372132446,1752533450565,-500.0,0.00023012,2]
[372132448,1752533450576,-500.0,0.00023012,2]
[372132450,1752533450586,-650.0,0.00023012,2]
[372132452,1752533450596,-189.82875,0.00023013,7]
[372132454,1752533450606,-189.82875,0.00023013,7]
[372132456,1752533450615,-460.0,0.00023013,3]
[372132458,1752533450624,-193.8,0.00023013,3]
[372132460,1752533450633,-460.0,0.00023013,3]
[372132462,1752533450642,-460.0,0.00023013,3]
[372132464,1752533450652,-460.0,0.00023013,3]
[372132466,1752533450661,-604.15,0.00023013,3]
[372132468,1752533450671,-460.0,0.00023013,3]
[372132470,1752533450680,-460.0,0.00023013,3]
[372132472,1752533450689,-460.0,0.00023013,3]
[372132474,1752533450699,-460.0,0.00023013,3]
[372132476,1752533450708,-460.0,0.00023013,3]
[372132478,1752533450718,-460.0,0.00023013,3]
[372132480,1752533450727,-550.24,0.00023013,3]
[372132482,1752533450736,-460.0,0.00023013,3]
[372132484,1752533450746,-460.0,0.00023013,3]
[372132486,1752533450755,-751.61,0.00023013,3]
[372132488,1752533450765,-503.9,0.00023013,3]
[372132490,1752533450775,-587.13,0.00023013,3]
[372132492,1752533450784,-460.0,0.00023013,3]
[372132494,1752533450794,-831.11,0.00023013,3]
[372132496,1752533450803,-460.0,0.00023013,3]
[372132498,1752533450812,-832.44,0.00023013,3]
[372132500,1752533450822,-463.84,0.00023013,3]
[372132502,1752533450831,-460.0,0.00023013,3]
[372132504,1752533450840,-803.81,0.00023013,3]
[372132506,1752533450850,-460.0,0.00023013,3]
[372132508,1752533450859,-460.0,0.00023013,3]
[372132510,1752533450868,-460.0,0.00023013,3]
[372132512,1752533450878,-460.0,0.00023013,3]
[372132514,1752533450888,-460.0,0.00023013,3]
[372132516,1752533450898,-460.0,0.00023013,3]
[372132518,1752533450907,-654.99,0.00023013,3]
[372132520,1752533450916,-460.0,0.00023013,3]
[372132522,1752533450926,-570.2,0.00023013,3]
[372132524,1752533450935,-460.0,0.00023013,3]
[372132526,1752533450944,-460.0,0.00023013,3]
[372132528,1752533450955,-460.0,0.00023013,3]
[372132530,1752533450964,-460.0,0.00023013,3]
[372132532,1752533450974,-460.0,0.00023013,3]
[372132534,1752533450984,-460.0,0.00023013,3]
[372132536,1752533450994,-3242.26,0.00023013,3]
[372132546,1752533451084,-460.0,0.00023013,3]
[372132548,1752533451096,-460.0,0.00023013,3]
[372132550,1752533451105,-318.37654,0.00023013,3]
[372132552,1752533451115,-460.0,0.00023013,3]
[372132554,1752533451124,-460.0,0.00023013,3]
[372132556,1752533451133,-460.0,0.00023013,3]
[372132558,1752533451142,-605.83,0.00023013,3]
[372132559,1752533451154,-1100.96,0.00023013,3]
[372132561,1752533451164,-461.72,0.00023013,3]
[372132563,1752533451173,-460.0,0.00023013,3]
[372132565,1752533451183,-757.64,0.00023013,3]
[372132567,1752533451192,-460.0,0.00023013,3]
[372132569,1752533451202,-460.0,0.00023013,3]
[372132571,1752533451211,-2170.58,0.00023013,3]
[372132573,1752533451220,-460.0,0.00023013,3]
[372132575,1752533451230,-460.0,0.00023013,3]
[372132577,1752533451239,-460.0,0.00023013,3]
[372132579,1752533451249,-460.0,0.00023013,3]
[372132581,1752533451258,-460.0,0.00023013,3]
[372132583,1752533451268,-675.21,0.00023013,3]
[372132585,1752533451278,-486.09,0.00023013,3]
[372132587,1752533451288,-3258.61,0.00023013,3]
[372132589,1752533451297,-541.33,0.00023013,3]
[372132591,1752533451307,-460.0,0.00023013,3]
[372132593,1752533451316,-1814.97,0.00023013,3]
[372132595,1752533451325,-460.0,0.00023013,3]
[372132597,1752533451334,-720.91,0.00023013,3]
[372132599,1752533451344,-5525.87,0.00023013,3]
[372132601,1752533451353,-746.44,0.00023013,3]
[372132603,1752533451363,-460.0,0.00023013,3]
[372132605,1752533451372,-465.16762024,0.00023013,3]
[372132607,1752533451381,-460.0,0.00023013,3]
[372132609,1752533451391,-460.0,0.00023013,3]
[372132610,1752533451400,-1497.08,0.00023013,3]
[372132612,1752533451410,-1019.17,0.00023013,3]
[372132614,1752533451420,-460.0,0.00023013,3]
[372132616,1752533451429,-460.0,0.00023013,3]
[372132618,1752533451439,-573.07,0.00023013,3]
[372132620,1752533451448,-895.64,0.00023013,3]
[372132622,1752533451458,-633.01,0.00023013,3]
[372132624,1752533451467,-727.47,0.00023013,3]
[372132626,1752533451477,-460.0,0.00023013,3]
[372132628,1752533451487,-460.0,0.00023013,3]
[372132630,1752533451497,-2619.08,0.00023013,3]
[372132632,1752533451507,-470.46,0.00023013,3]
[372132634,1752533451516,-862.51,0.00023013,3]
[372132636,1752533451526,-460.0,0.00023013,3]
[372132638,1752533451535,-460.0,0.00023013,3]
[372132640,1752533451544,-460.0,0.00023013,3]
[372132642,1752533451554,-2300.28,0.00023013,3]
[372132644,1752533451564,-460.0,0.00023013,3]
[372132646,1752533451573,-460.0,0.00023013,3]
[372132648,1752533451582,-3309.28,0.00023013,3]
[372132650,1752533451592,-460.0,0.00023013,3]
[372132652,1752533451601,-576.02,0.00023013,3]
[372132654,1752533451611,-460.0,0.00023013,3]
[372132656,1752533451620,-508.59,0.00023013,3]
[372132658,1752533451630,-460.0,0.00023013,3]
[372132660,1752533451641,-460.0,0.00023013,3]
[372132661,1752533451651,-3133.72,0.00023013,3]
[372132663,1752533451660,-975.59,0.00023013,3]
[372132665,1752533451670,-460.0,0.00023013,3]
[372132667,1752533451680,-4974.4,0.00023013,3]
[372132669,1752533451689,-759.28,0.00023013,3]
[372132671,1752533451699,-641.45,0.00023013,3]
[372132673,1752533451709,-669.36,0.00023013,3]
[372132675,1752533451719,-460.0,0.00023013,3]
[372132677,1752533451728,-504.07,0.00023013,3]
[372132679,1752533451738,-1181.0,0.00023013,3]
[372132681,1752533451748,-389.5,0.00023013,3]
[372132683,1752533451757,-307.15,0.00023013,3]
[372132685,1752533451767,-465.55,0.00023013,3]
[372132687,1752533451776,-460.0,0.00023013,3]
[372132689,1752533451786,-1145.72,0.00023013,3]
[372132691,1752533451795,-302.68778321,0.00023013,3]